bitfinex-derivatives/quotes_BTCF0:USTF0_20251209
["timestamp","ask_amount","ask_price","bid_price","bid_amount"]
[1765267258312,0.08110401,90558.0,90557.0,0.05549]
[1765267258808,0.0672245,90553.0,90552.0,0.00016565]
[1765267259007,0.09214851,90553.0,90552.0,0.00016565]
[1765267259309,0.067226,90541.0,90540.0,0.05659449]
[1765267259498,0.09215001,90541.0,90540.0,0.05659449]
[1765267261014,0.09215001,90541.0,90540.0,0.05859449]
[1765267261201,0.09215001,90541.0,90540.0,0.06159449]
[1765267261912,0.09215001,90541.0,90540.0,0.06059449]
[1765267262414,0.09215001,90541.0,90540.0,0.00510449]
[1765267263116,0.09215001,90541.0,90540.0,0.06059449]
[1765267263315,0.08110401,90541.0,90540.0,0.06059449]
[1765267265314,0.08110401,90541.0,90540.0,0.07730449]
[1765267266115,0.05618,90541.0,90540.0,0.07730449]
[1765267268007,0.05618,90541.0,90540.0,0.06059449]
[1765267269818,0.08141064,90541.0,90540.0,0.06059449]
[1765267271504,0.08141064,90541.0,90540.0,0.07742449]
[1765267271713,0.02523064,90541.0,90540.0,0.07742449]
[1765267274322,0.05747565,90550.0,90549.0,0.05891]
[1765267274520,0.08269844,90550.0,90549.0,0.05891]
[1765267276012,0.08269844,90550.0,90549.0,0.070955]
[1765267276727,0.08269844,90550.0,90549.0,0.012045]
[1765267277415,0.08269844,90550.0,90549.0,0.041915]
[1765267277922,0.08269844,90550.0,90549.0,0.070955]
[1765267279015,0.05422844,90550.0,90549.0,0.070955]
[1765267279719,0.02538844,90550.0,90549.0,0.070955]
[1765267282714,0.05422844,90550.0,90549.0,0.070955]
[1765267283229,0.08269844,90550.0,90549.0,0.070955]
[1765267294239,0.08269844,90550.0,90549.0,0.500955]
[1765267294743,0.05747565,90550.0,90549.0,0.500955]
[1765267296337,0.02900565,90550.0,90549.0,0.500955]
[1765267296847,0.00016565,90550.0,90549.0,0.500955]
[1765267297140,0.00016565,90550.0,90549.0,0.070955]
[1765267297345,0.05747565,90550.0,90549.0,0.041915]
[1765267297643,0.05747565,90550.0,90549.0,0.070955]
[1765267298835,0.05747565,90550.0,90549.0,0.069955]
[1765267299148,0.05747565,90550.0,90549.0,0.070955]
[1765267299950,0.05747565,90550.0,90549.0,0.069955]
[1765267300249,0.05747565,90550.0,90549.0,0.070955]
[1765267300446,0.02900565,90550.0,90549.0,0.070955]
[1765267300651,0.09043168,90574.0,90549.0,0.070955]
[1765267300652,0.05731,90569.0,90568.0,0.0872327]
[1765267300945,0.02884,90569.0,90568.0,0.0872327]
[1765267301139,0.0683515,90579.0,90578.0,0.0699515]
[1765267301645,0.05731,90579.0,90578.0,0.0699515]
[1765267302550,0.06131,90579.0,90578.0,0.0699515]
[1765267307047,0.0723514,90579.0,90578.0,0.0699515]
[1765267308243,0.06131,90579.0,90578.0,0.0699515]
[1765267309949,0.0723514,90579.0,90578.0,0.0699515]
[1765267311359,0.06131,90579.0,90578.0,0.0699515]
[1765267311562,0.004,90579.0,90578.0,0.0699515]
[1765267312259,0.004,90579.0,90578.0,0.4499515]
[1765267312457,0.05944417,90585.0,90584.0,0.0110407]
[1765267312759,0.08743982,90588.0,90587.0,0.05879]
[1765267312952,0.02799565,90588.0,90587.0,0.05879]
[1765267313359,0.00016565,90588.0,90587.0,0.05879]
[1765267313963,0.05510565,90588.0,90587.0,0.05879]
[1765267315059,0.05510565,90588.0,90587.0,0.03006]
[1765267315260,0.05510565,90588.0,90587.0,0.001]
[1765267315652,0.05510565,90588.0,90587.0,0.003]
[1765267316453,0.11449029,90588.0,90587.0,0.003]
[1765267316850,0.11449029,90588.0,90587.0,0.03206]
[1765267318761,0.11449029,90588.0,90587.0,0.06179]
[1765267318961,0.05510565,90588.0,90587.0,0.06179]
[1765267320467,0.02799565,90588.0,90587.0,0.06179]
[1765267320653,0.05510565,90588.0,90587.0,0.06179]
[1765267322168,0.11449029,90588.0,90587.0,0.003]
[1765267323958,0.13777971,90588.0,90587.0,0.003]
[1765267324367,0.07839507,90588.0,90587.0,0.003]
[1765267330466,0.07839507,90588.0,90587.0,0.0594]
[1765267330867,0.07839507,90588.0,90587.0,0.03169]
[1765267332472,0.07839507,90588.0,90587.0,0.0594]
[1765267334576,0.07839507,90588.0,90587.0,0.03169]
[1765267335767,0.09567507,90588.0,90587.0,0.03169]
[1765267336074,0.09567507,90588.0,90587.0,0.06013]
[1765267336666,0.07839507,90588.0,90587.0,0.06013]
[1765267338465,0.15778475,90588.0,90587.0,0.06013]
[1765267340374,0.07839507,90588.0,90587.0,0.06013]
[1765267345966,0.08751507,90588.0,90587.0,0.06013]
[1765267346481,0.16703055,90588.0,90587.0,0.06013]
[1765267349782,0.16703055,90588.0,90587.0,0.03169]
[1765267349982,0.16703055,90588.0,90587.0,0.06013]
[1765267351883,0.16703055,90588.0,90587.0,0.03169]
[1765267352177,0.08751507,90588.0,90587.0,0.05876]
[1765267353881,0.06422565,90588.0,90587.0,0.05876]
[1765267355079,0.05510565,90588.0,90587.0,0.05876]
[1765267357485,0.00016565,90588.0,90587.0,0.05876]
[1765267358076,0.02804565,90588.0,90587.0,0.05876]
[1765267358485,0.05786565,90588.0,90587.0,0.05876]
[1765267360185,0.02804565,90588.0,90587.0,0.05876]
[1765267360388,0.00016565,90588.0,90587.0,0.05876]
[1765267360686,0.02804565,90588.0,90587.0,0.05876]
[1765267360886,0.05786565,90588.0,90587.0,0.05876]
[1765267361288,0.02804565,90588.0,90587.0,0.05876]
[1765267361588,0.05786565,90588.0,90587.0,0.05876]
[1765267361779,0.00016565,90588.0,90587.0,0.05876]
[1765267363288,0.05534565,90588.0,90587.0,0.05876]
[1765267366490,0.07262565,90588.0,90587.0,0.03032]
[1765267366686,0.07262565,90588.0,90587.0,0.05836]
[1765267366887,0.05534565,90588.0,90587.0,0.05836]
[1765267383499,0.00016565,90588.0,90587.0,0.44836]
[1765267383702,0.00016565,90588.0,90587.0,0.05836]
[1765267387406,0.02820565,90588.0,90587.0,0.05836]
[1765267390806,0.05710565,90588.0,90587.0,0.05836]
[1765267392606,0.02820565,90588.0,90587.0,0.05836]
[1765267393508,0.08783928,90588.0,90587.0,0.05836]
[1765267395219,0.00016565,90588.0,90587.0,0.40836]
[1765267395415,0.00016565,90588.0,90587.0,0.45946694]
[1765267396204,0.05963363,90594.0,90593.0,0.05682]
[1765267396404,0.05963363,90596.0,90595.0,0.05682]
[1765267396603,0.05963363,90598.0,90596.0,0.0848182]
[1765267396921,0.08667363,90599.0,90598.0,0.0678579]
[1765267397412,0.05963363,90600.0,90599.0,0.05682]
[1765267397616,0.11590363,90600.0,90599.0,0.05682]
[1765267399019,0.05963363,90600.0,90599.0,0.05682]
[1765267399211,0.00016514,90608.0,90607.0,0.05682]
[1765267399514,0.06747184,90608.0,90607.0,0.05682]
[1765267400708,0.06847184,90608.0,90607.0,0.05682]
[1765267407719,0.06847184,90608.0,90604.0,0.01696]
[1765267407720,0.067308,90597.0,90596.0,0.05682]
[1765267407922,0.067308,90597.0,90589.0,0.05698556]
[1765267407923,0.0673089,90590.0,90589.0,0.05698556]
[1765267409815,0.0673089,90590.0,90589.0,0.05998556]
[1765267410014,0.05627,90590.0,90589.0,0.05998556]
[1765267410820,0.02704,90590.0,90589.0,0.05998556]
[1765267411318,0.0110381,90597.0,90596.0,0.05682]
[1765267411319,0.02704,90597.0,90596.0,0.05682]
[1765267411820,0.10308715,90600.0,90599.0,0.05682]
[1765267412123,0.05627,90600.0,90599.0,0.05682]
[1765267414929,0.0380777,90601.0,90600.0,0.0848177]
[1765267415121,0.0673077,90601.0,90600.0,0.07378]
[1765267415424,0.0110383,90595.0,90591.0,0.0381088]
[1765267415625,0.05627,90592.0,90591.0,0.0678588]
[1765267417531,0.0673087,90592.0,90591.0,0.0678588]
[1765267418026,0.0673087,90592.0,90591.0,0.0688588]
[1765267418730,0.05627,90592.0,90591.0,0.0688588]
[1765267420831,0.11580297,90598.0,90597.0,0.067858]
[1765267421332,0.08657297,90598.0,90597.0,0.067858]
[1765267421627,0.02704,90598.0,90597.0,0.067858]
[1765267422335,0.08657297,90598.0,90597.0,0.067858]
[1765267422524,0.11580297,90598.0,90597.0,0.067858]
[1765267423121,0.05953297,90598.0,90597.0,0.067858]
[1765267423526,0.11530297,90598.0,90597.0,0.067858]
[1765267423723,0.05577,90598.0,90597.0,0.067858]
[1765267439643,0.05577,90598.0,90597.0,0.05682]
[1765267441252,0.02748,90598.0,90597.0,0.05682]
[1765267441547,0.05653,90598.0,90597.0,0.05682]
[1765267442338,0.02748,90598.0,90597.0,0.05682]
[1765267442645,0.05653,90598.0,90597.0,0.05682]
[1765267451551,0.01694,90596.0,90592.0,0.02901]
[1765267451752,0.05781,90590.0,90589.0,0.00016556]
[1765267452651,0.05781,90590.0,90589.0,0.05786556]
[1765267453447,0.05781,90590.0,90589.0,0.00016556]
[1765267453653,0.05781,90590.0,90589.0,0.00116556]
[1765267455367,0.05707,90569.0,90568.0,0.0408915]
[1765267455870,0.05707,90569.0,90568.0,0.0695815]
[1765267456461,0.05707,90569.0,90568.0,0.0785815]
[1765267463270,0.0110407,90576.0,90574.0,0.0110408]
[1765267464776,0.0110407,90576.0,90574.0,0.0140408]
[1765267465074,0.0110407,90576.0,90574.0,0.0170408]
[1765267467476,0.0110407,90576.0,90574.0,0.006]
[1765267471073,0.0110418,90566.0,90565.0,0.00110419]
[1765267471273,0.07054174,90566.0,90565.0,0.00110419]
[1765267471573,0.0110418,90566.0,90565.0,0.00110419]
[1765267472182,0.0110418,90566.0,90565.0,0.01010419]
[1765267478684,0.0110418,90566.0,90565.0,0.00610419]
[1765267479385,0.0110426,90560.0,90559.0,0.00016556]
[1765267479687,0.0110438,90550.0,90540.0,0.00110449]
[1765267479878,0.0110449,90541.0,90540.0,0.00110449]
[1765267480483,0.011046,90532.0,90531.0,0.00016566]
[1765267480887,0.01115254,90532.0,90531.0,0.00016566]
[1765267481678,0.01215254,90532.0,90531.0,0.00016566]
[1765267482079,0.01115254,90532.0,90531.0,0.00116566]
[1765267482278,0.01215254,90532.0,90531.0,0.00116566]
[1765267483585,0.01115254,90532.0,90531.0,0.00116566]
[1765267483784,0.01515254,90532.0,90531.0,0.00116566]
[1765267486288,0.01515254,90532.0,90531.0,0.00016566]
[1765267487289,0.01515254,90532.0,90531.0,0.01121176]
[1765267487590,0.01515254,90532.0,90531.0,0.00016566]
[1765267489894,0.01515254,90532.0,90531.0,0.00116566]
[1765267490095,0.01115254,90532.0,90531.0,0.00116566]
[1765267490295,0.01515254,90532.0,90531.0,0.00116566]
[1765267495200,0.00410654,90532.0,90531.0,0.37116566]
[1765267495596,0.0110444,90545.0,90544.0,0.0110444]
[1765267496399,0.0110441,90548.0,90547.0,0.011044]
[1765267496591,0.00016566,90550.0,90547.0,0.011044]
[1765267497691,0.00016566,90550.0,90531.0,0.00016566]
[1765267497890,0.011044,90549.0,90535.0,0.0110455]
[1765267498192,0.0110454,90537.0,90535.0,0.0110455]
[1765267499597,0.0110447,90543.0,90541.0,0.0110448]
[1765267499801,0.0110443,90546.0,90545.0,0.0110443]
[1765267500388,0.00016566,90550.0,90549.0,0.0110439]
[1765267501502,0.0110446,90544.0,90543.0,0.0110446]
[1765267501802,0.0110442,90547.0,90546.0,0.0110441]
[1765267502194,0.01120946,90550.0,90549.0,0.0110439]
[1765267502703,0.01720946,90550.0,90549.0,0.0110439]
[1765267503004,0.0110442,90547.0,90546.0,0.0110442]
[1765267503203,0.0160442,90547.0,90546.0,0.0110442]
[1765267503804,0.0110442,90547.0,90546.0,0.0110442]
[1765267504398,0.0160442,90547.0,90546.0,0.0110442]
[1765267505206,0.0170442,90547.0,90546.0,0.0110442]
[1765267505408,0.006,90547.0,90546.0,0.0110442]
[1765267512111,0.006,90547.0,90537.0,0.0468421]
[1765267512299,0.006,90547.0,90539.0,0.011045]
[1765267512300,0.0110451,90540.0,90539.0,0.011045]
[1765267512506,0.0110451,90540.0,90537.0,0.0468421]
[1765267512711,0.0110454,90537.0,90536.0,0.0110455]
[1765267512909,0.011046,90532.0,90531.0,0.00016566]
[1765267515016,0.013046,90532.0,90531.0,0.00016566]
[1765267515319,0.013046,90532.0,90531.0,0.00116566]
[1765267515501,0.002,90532.0,90531.0,0.01221176]
[1765267517320,0.002,90532.0,90531.0,0.00116566]
[1765267517704,0.002,90532.0,90531.0,0.01121176]
[1765267518020,0.002,90532.0,90531.0,0.01221176]
[1765267518919,0.002,90532.0,90531.0,0.00116566]
[1765267521418,0.0110466,90527.0,90526.0,0.05955]
[1765267521620,0.0110479,90516.0,90515.0,0.0011048]
[1765267522821,0.0110479,90516.0,90515.0,0.0031048]
[1765267524320,0.0110479,90516.0,90515.0,0.0041048]
[1765267525125,0.0110475,90520.0,90515.0,0.0274948]
[1765267525322,0.01746566,90525.0,90515.0,0.0274948]
[1765267525323,0.0110478,90517.0,90515.0,0.0274948]
[1765267525633,0.0110478,90517.0,90515.0,0.0041048]
[1765267526220,0.0110478,90517.0,90515.0,0.0021048]
[1765267526424,0.0110478,90517.0,90515.0,0.0041048]
[1765267527038,0.05955054,90524.0,90520.0,0.02339]
[1765267527241,0.00016566,90525.0,90523.0,0.011047]
[1765267527433,0.0110469,90524.0,90521.0,0.0110473]
[1765267527639,0.00016566,90525.0,90521.0,0.0110473]
[1765267528342,0.00116566,90525.0,90521.0,0.0110473]
[1765267529844,0.00016566,90525.0,90521.0,0.0110473]
[1765267530144,0.00116566,90525.0,90521.0,0.0110473]
[1765267530444,0.00116566,90525.0,90521.0,0.0130473]
[1765267530846,0.00016566,90525.0,90521.0,0.3840473]
[1765267531338,0.00016566,90525.0,90521.0,0.3830473]
[1765267531546,0.00016566,90525.0,90521.0,0.3840473]
[1765267532337,0.071166,90550.0,90521.0,0.3840473]
[1765267532338,0.0110446,90544.0,90540.0,0.02061]
[1765267534031,0.0110446,90544.0,90540.0,0.02261]
[1765267534831,0.05955054,90548.0,90544.0,0.0110444]
[1765267535045,0.05955054,90549.0,90547.0,0.0110441]
[1765267536048,0.05955054,90549.0,90547.0,0.0110441]
[1765267536246,0.011044,90548.0,90546.0,0.02339]
[1765267536448,0.011044,90548.0,90546.0,0.0344342]
[1765267536649,0.05955054,90549.0,90547.0,0.002]
[1765267537244,0.07059444,90549.0,90547.0,0.002]
[1765267537440,0.07059444,90549.0,90546.0,0.0364342]
[1765267537743,0.05955054,90549.0,90546.0,0.0364342]
[1765267538246,0.00016566,90551.0,90546.0,0.0364342]
[1765267539044,0.00016566,90551.0,90548.0,0.011044]
[1765267539548,0.01120946,90551.0,90547.0,0.002]
[1765267539739,0.01120946,90551.0,90544.0,0.0110444]
[1765267539939,0.01120946,90551.0,90546.0,0.002]
[1765267540245,0.01120946,90551.0,90547.0,0.0110441]
[1765267540637,0.01120946,90551.0,90547.0,0.0130441]
[1765267540839,0.011044,90549.0,90547.0,0.0130441]
[1765267542040,0.011044,90549.0,90547.0,0.0110441]
[1765267542242,0.011044,90549.0,90547.0,0.0120441]
[1765267542844,0.011044,90549.0,90547.0,0.0110441]
[1765267543049,0.011044,90549.0,90547.0,0.0120441]
[1765267543449,0.012044,90549.0,90547.0,0.0120441]
[1765267545351,0.012044,90549.0,90547.0,0.001]
[1765267548844,0.07541,90548.0,90547.0,0.001]
[1765267549854,0.07541,90538.0,90537.0,0.0895153]
[1765267551148,0.07641,90538.0,90537.0,0.0895153]
[1765267551549,0.07541,90538.0,90537.0,0.0895153]
[1765267552156,0.07541,90538.0,90537.0,0.0915153]
[1765267553158,0.03835,90538.0,90537.0,0.0925153]
[1765267554452,0.06834,90538.0,90537.0,0.0925153]
[1765267560154,0.05808,90544.0,90543.0,0.0679046]
[1765267560361,0.05824566,90551.0,90550.0,0.06855]
[1765267560555,0.06928936,90551.0,90550.0,0.06855]
[1765267560860,0.00016566,90551.0,90550.0,0.06855]
[1765267563163,0.00016566,90551.0,90550.0,0.06955]
[1765267563854,0.00016566,90551.0,90550.0,0.07155]
[1765267566462,0.05706566,90551.0,90550.0,0.07155]
[1765267569258,0.05706566,90551.0,90550.0,0.003]
[1765267570567,0.05706566,90551.0,90550.0,0.05998]
[1765267571265,0.05706566,90551.0,90550.0,0.003]
[1765267571769,0.05706566,90551.0,90550.0,0.05998]
[1765267573561,0.05706566,90551.0,90550.0,0.07734]
[1765267574466,0.00016566,90551.0,90550.0,0.07734]
[1765267575672,0.0569,90569.0,90568.0,0.0680216]
[1765267577273,0.0599,90569.0,90568.0,0.0680216]
[1765267578769,0.0599,90569.0,90568.0,0.05698]
[1765267579166,0.0679426,90560.0,90559.0,0.00016566]
[1765267580163,0.0689426,90560.0,90559.0,0.00016566]
[1765267580374,0.0689426,90560.0,90559.0,0.00116566]
[1765267580671,0.0689426,90560.0,90559.0,0.05814566]
[1765267584874,0.0689426,90560.0,90559.0,0.03109566]
[1765267585069,0.0689426,90560.0,90559.0,0.00116566]
[1765267587680,0.0689426,90560.0,90559.0,0.03012566]
[1765267589081,0.12849314,90560.0,90559.0,0.03012566]
[1765267589980,0.13732314,90560.0,90559.0,0.03012566]
[1765267590479,0.0689426,90560.0,90559.0,0.05925566]
[1765267592575,0.0859826,90560.0,90559.0,0.00116566]
[1765267592778,0.14553314,90560.0,90559.0,0.00116566]
[1765267594479,0.12849314,90560.0,90559.0,0.05925566]
[1765267595084,0.12849314,90560.0,90559.0,0.00116566]
[1765267596685,0.12849314,90560.0,90529.0,0.0110463]
[1765267596686,0.011045,90541.0,90540.0,0.02896]
[1765267596984,0.01294,90546.0,90533.0,0.05809]
[1765267596985,0.0703257,90534.0,90533.0,0.05809]
[1765267599095,0.0703257,90534.0,90533.0,0.06309]
[1765267599586,0.0703257,90534.0,90533.0,0.05809]
[1765267599779,0.0703257,90534.0,90533.0,0.05909]
[1765267607988,0.0703257,90534.0,90533.0,0.001]
[1765267614992,0.0669068,90525.0,90524.0,0.05708566]
[1765267616197,0.0110468,90525.0,90524.0,0.05708566]
[1765267616389,0.0395068,90525.0,90524.0,0.05708566]
[1765267616891,0.0669068,90525.0,90524.0,0.05908566]
[1765267617194,0.0669068,90525.0,90524.0,0.06108566]
[1765267623996,0.09036163,90525.0,90524.0,0.06108566]
[1765267626196,0.10743163,90525.0,90524.0,0.03358566]
[1765267627298,0.10743163,90525.0,90524.0,0.00416566]
[1765267628999,0.10744981,90525.0,90524.0,0.00416566]
[1765267629201,0.09037981,90525.0,90524.0,0.05936566]
[1765267630597,0.10744981,90525.0,90524.0,0.03228566]
[1765267631696,0.10744981,90525.0,90524.0,0.05936566]
[1765267631886,0.10744981,90525.0,90524.0,0.00416566]
[1765267633799,0.10746109,90525.0,90524.0,0.00416566]
[1765267634504,0.09039109,90525.0,90524.0,0.05936566]
[1765267637502,0.14997284,90525.0,90524.0,0.05936566]
[1765267637704,0.09039109,90525.0,90524.0,0.05936566]
[1765267638210,0.14997284,90525.0,90524.0,0.05936566]
[1765267638609,0.09039109,90525.0,90524.0,0.05836566]
[1765267638999,0.09039109,90525.0,90524.0,0.05636566]
[1765267639902,0.14997284,90525.0,90524.0,0.05636566]
[1765267641908,0.09039109,90525.0,90524.0,0.05636566]
[1765267642110,0.15004017,90525.0,90524.0,0.05636566]
[1765267643413,0.16650017,90525.0,90524.0,0.00116566]
[1765267644113,0.10685109,90525.0,90524.0,0.00116566]
[1765267644606,0.16649917,90525.0,90524.0,0.00116566]
[1765267644813,0.16650018,90525.0,90524.0,0.00116566]
[1765267647511,0.10685109,90525.0,90524.0,0.00116566]
[1765267648504,0.10685109,90525.0,90524.0,0.03114566]
[1765267648705,0.15004121,90525.0,90524.0,0.05892566]
[1765267650218,0.00016566,90543.0,90542.0,0.05776]
[1765267650917,0.00016566,90543.0,90542.0,0.46776]
[1765267651105,0.00016566,90543.0,90542.0,0.47900944]
[1765267651301,0.00116566,90543.0,90542.0,0.46776]
[1765267651906,0.10654574,90560.0,90558.0,0.0742]
[1765267651907,0.02876,90559.0,90558.0,0.0742]
[1765267652101,0.0110423,90563.0,90562.0,0.05776]
[1765267652102,0.11804012,90563.0,90562.0,0.05776]
[1765267652302,0.0694318,90567.0,90566.0,0.05776]
[1765267652906,0.02876,90567.0,90566.0,0.05776]
[1765267653309,0.05839,90567.0,90566.0,0.05776]
[1765267654717,0.05939,90567.0,90566.0,0.05776]
[1765267654918,0.06239,90567.0,90566.0,0.05776]
[1765267663318,0.03276,90567.0,90566.0,0.05776]
[1765267663516,0.004,90567.0,90566.0,0.05776]
[1765267664622,0.004,90567.0,90566.0,0.42776]
[1765267667030,0.04706128,90576.0,90575.0,0.0809007]
[1765267667220,0.02892566,90576.0,90575.0,0.0809007]
[1765267668425,0.00516566,90576.0,90575.0,0.0809007]
[1765267668629,0.03392566,90576.0,90575.0,0.0809007]
[1765267668817,0.06355566,90576.0,90575.0,0.0809007]
[1765267669325,0.06455566,90576.0,90575.0,0.0809007]
[1765267669531,0.06455566,90576.0,90575.0,0.06986]
[1765267677125,0.06455566,90576.0,90575.0,0.06986]
[1765267678837,0.06455566,90576.0,90575.0,0.05776]
[1765267679319,0.06455566,90576.0,90575.0,0.07494]
[1765267680924,0.07559626,90576.0,90575.0,0.07494]
[1765267682346,0.07559626,90576.0,90575.0,0.05776]
[1765267686639,0.06455566,90576.0,90575.0,0.05776]
[1765267686839,0.07559626,90576.0,90575.0,0.07423]
[1765267688736,0.07559626,90576.0,90575.0,0.05776]
[1765267691238,0.07559626,90576.0,90564.0,0.01644]
[1765267691239,0.0231526,90560.0,90559.0,0.028]
[1765267691437,0.0231526,90560.0,90557.0,0.00016566]
[1765267691438,0.05441,90558.0,90557.0,0.00016566]
[1765267691633,0.05441,90558.0,90557.0,0.05720566]
[1765267692746,0.02734,90558.0,90557.0,0.06824856]
[1765267692934,0.10130562,90567.0,90566.0,0.05704]
[1765267693136,0.05441,90567.0,90566.0,0.05704]
[1765267698148,0.05441,90567.0,90566.0,0.028]
[1765267698349,0.05441,90558.0,90557.0,0.05720566]
[1765267699636,0.05441,90558.0,90557.0,0.05820566]
[1765267700040,0.05441,90558.0,90557.0,0.05920566]
[1765267703050,0.05441,90566.0,90565.0,0.07426]
[1765267703560,0.0654518,90566.0,90565.0,0.07426]
[1765267704256,0.0654518,90566.0,90565.0,0.05704]
[1765267708757,0.0681228,90558.0,90557.0,0.05620566]
[1765267709951,0.05708,90558.0,90557.0,0.05720566]
[1765267710254,0.05708,90558.0,90557.0,0.05820566]
[1765267711956,0.05708,90558.0,90557.0,0.05720566]
[1765267712350,0.05708,90558.0,90557.0,0.05620566]
[1765267712550,0.05708,90558.0,90557.0,0.05720566]
[1765267713358,0.05708,90558.0,90557.0,0.05620566]
[1765267713559,0.05708,90558.0,90557.0,0.02841566]
[1765267713760,0.05708,90558.0,90557.0,0.00016566]
[1765267713950,0.05708,90558.0,90557.0,0.05620566]
[1765267716054,0.02713,90558.0,90557.0,0.05620566]
[1765267716260,0.05708,90558.0,90557.0,0.05620566]
[1765267718066,0.0110427,90559.0,90558.0,0.05604]
[1765267718251,0.0681223,90562.0,90561.0,0.05604]
[1765267722969,0.0381723,90562.0,90561.0,0.05604]
[1765267723166,0.0110423,90562.0,90561.0,0.05604]
[1765267723362,0.0681223,90562.0,90561.0,0.05604]
[1765267735879,0.0381723,90562.0,90561.0,0.05604]
[1765267736078,0.0665023,90562.0,90561.0,0.05604]
[1765267736473,0.018,90592.0,90567.0,0.0710217]
[1765267736474,0.0110417,90568.0,90567.0,0.0710217]
[1765267737380,0.0398617,90568.0,90567.0,0.0710217]
[1765267737886,0.0110417,90568.0,90567.0,0.0710217]
[1765267740774,0.0681911,90572.0,90570.0,0.0272713]
[1765267740974,0.00016566,90576.0,90570.0,0.0272713]
[1765267740975,0.0110407,90575.0,90572.0,0.0110411]
[1765267741180,0.0398607,90575.0,90574.0,0.05998]
[1765267741382,0.0681907,90575.0,90574.0,0.05998]
[1765267743678,0.0398607,90575.0,90574.0,0.05998]
[1765267743884,0.0707907,90575.0,90574.0,0.05998]
[1765267744785,0.0702113,90570.0,90569.0,0.0673114]
[1765267745089,0.0702113,90570.0,90569.0,0.05627]
[1765267746077,0.0712113,90570.0,90569.0,0.05627]
[1765267746786,0.06017,90570.0,90569.0,0.0673115]
[1765267746989,0.06017,90570.0,90569.0,0.05627]
[1765267748482,0.0702124,90561.0,90560.0,0.05627]
[1765267748686,0.0702128,90558.0,90557.0,0.02918566]
[1765267748887,0.0702128,90558.0,90557.0,0.05643566]
[1765267750484,0.0702128,90558.0,90557.0,0.05743566]
[1765267751178,0.0702128,90558.0,90557.0,0.05843566]
[1765267751891,0.0702128,90558.0,90557.0,0.05643566]
[1765267752080,0.0702128,90558.0,90557.0,0.05743566]
[1765267763896,0.0702128,90558.0,90557.0,0.05643566]
[1765267778007,0.1272979,90568.0,90567.0,0.05724]
[1765267778205,0.0677116,90568.0,90567.0,0.05724]
[1765267791626,0.05667,90568.0,90567.0,0.05724]
[1765267791830,0.00016566,90576.0,90575.0,0.0682807]
[1765267792921,0.00116566,90576.0,90575.0,0.0682807]
[1765267794423,0.02850566,90576.0,90575.0,0.0682807]
[1765267796831,0.03954626,90576.0,90575.0,0.0682807]
[1765267797132,0.06789626,90576.0,90575.0,0.05724]
[1765267799920,0.03954626,90576.0,90575.0,0.05724]
[1765267800233,0.06789626,90576.0,90575.0,0.05724]
[1765267801930,0.00116566,90576.0,90575.0,0.05724]
[1765267802334,0.03023566,90576.0,90575.0,0.05724]
[1765267803739,0.05858566,90576.0,90575.0,0.05724]
[1765267806038,0.05858566,90576.0,90575.0,0.0682807]
[1765267806736,0.06550566,90576.0,90575.0,0.05724]
[1765267807034,0.05556,90569.0,90568.0,0.07562]
[1765267808345,0.05656,90569.0,90568.0,0.07562]
[1765267808544,0.05656,90569.0,90568.0,0.05939]
[1765267808836,0.05556,90562.0,90561.0,0.09885684]
[1765267809047,0.05556,90562.0,90561.0,0.05939]
[1765267809338,0.0666023,90562.0,90561.0,0.09885684]
[1765267809843,0.05556,90562.0,90561.0,0.09885684]
[1765267810441,0.05556,90562.0,90561.0,0.05939]
[1765267812935,0.05556,90558.0,90557.0,0.05955566]
[1765267813333,0.05556,90558.0,90557.0,0.03008566]
[1765267813538,0.05556,90558.0,90557.0,0.00016566]
[1765267813739,0.05556,90558.0,90557.0,0.05955566]
[1765267814037,0.0277,90558.0,90557.0,0.05955566]
[1765267814343,0.05556,90562.0,90561.0,0.05939]
[1765267823551,0.05556,90562.0,90561.0,0.0704324]
[1765267825650,0.0660817,90567.0,90564.0,0.028632]
[1765267825851,0.0660817,90567.0,90566.0,0.05782]
[1765267828642,0.05504,90567.0,90566.0,0.05782]
[1765267834060,0.04961304,90567.0,90566.0,0.05782]
[1765267835356,0.02706,90575.0,90574.0,0.0110409]
[1765267835566,0.05504,90575.0,90574.0,0.05782]
[1765267837064,0.05604,90575.0,90574.0,0.05782]
[1765267845263,0.05504,90566.0,90565.0,0.068862]
[1765267854079,0.05504,90566.0,90565.0,0.05782]
[1765267855179,0.0554,90575.0,90574.0,0.0693709]
[1765267855674,0.0554,90575.0,90574.0,0.05833]
[1765267856577,0.0564,90575.0,90574.0,0.05833]
[1765267862072,0.0564,90575.0,90574.0,0.0693709]
[1765267863077,0.0674407,90575.0,90574.0,0.05833]
[1765267864190,0.09099613,90575.0,90574.0,0.05833]
[1765267867075,0.07895543,90575.0,90574.0,0.05833]
[1765267882491,0.02355543,90575.0,90574.0,0.05833]
[1765267882690,0.08034614,90590.0,90589.0,0.05759]
[1765267882691,0.00110388,90590.0,90589.0,0.05759]
[1765267882996,0.05631388,90590.0,90589.0,0.05759]
[1765267883988,0.00310388,90590.0,90589.0,0.05759]
[1765267885492,0.05831388,90590.0,90589.0,0.05759]
[1765267885692,0.00110388,90590.0,90589.0,0.05759]
[1765267886392,0.00016526,90599.0,90598.0,0.0686279]
[1765267887594,0.00116526,90599.0,90598.0,0.0686279]
[1765267888597,0.0662466,90610.0,90609.0,0.05759]
[1765267889786,0.0692466,90610.0,90609.0,0.05759]
[1765267890187,0.0662476,90601.0,90600.0,0.05775556]
[1765267890387,0.0662476,90601.0,90600.0,0.00016556]
[1765267890985,0.04946884,90601.0,90600.0,0.00016556]
[1765267891188,0.06050644,90601.0,90600.0,0.00016556]
[1765267891589,0.04946884,90601.0,90600.0,0.05775556]
[1765267892694,0.05046884,90601.0,90600.0,0.05775556]
[1765267894700,0.07380793,90601.0,90600.0,0.00016556]
[1765267894894,0.07380793,90601.0,90600.0,0.05775556]
[1765267905426,0.07380793,90601.0,90600.0,0.00016556]
[1765267905725,0.07380793,90601.0,90600.0,0.05775556]
[1765267910225,0.07380793,90601.0,90600.0,0.07494556]
[1765267910420,0.02433909,90601.0,90600.0,0.07494556]
[1765267910821,0.07954909,90601.0,90600.0,0.07494556]
[1765267912728,0.07954909,90601.0,90600.0,0.05775556]
[1765267913433,0.07954909,90601.0,90600.0,0.07414556]
[1765267921120,0.07954909,90601.0,90600.0,0.05775556]
[1765267922121,0.07954909,90601.0,90600.0,0.00016556]
[1765267922430,0.0668095,90585.0,90584.0,0.05628]